fUSD/lending_fUSD_20250505
["ID","MTS","AMOUNT","RATE_DAILY","PERIOD"]
[359911464,1746414647074,-1040.78861574,0.00019897,2]
[359911466,1746414647085,-1040.78861574,0.00019897,2]
[359911468,1746414647094,-1040.78861574,0.00019897,2]
[359911470,1746414647104,-1040.78861574,0.00019897,2]
[359911472,1746414647113,-1040.78861574,0.00019897,2]
[359911474,1746414647124,-1040.78861574,0.00019897,2]
[359911476,1746414647133,-1040.78861574,0.00019897,2]
[359911478,1746414647143,-1040.78861574,0.00019897,2]
[359911480,1746414647153,-1040.78861574,0.00019897,2]
[359911482,1746414647162,-1040.78861574,0.00019897,2]
[359911484,1746414647172,-1040.78861574,0.00019897,2]
[359911486,1746414647181,-1040.78861574,0.00019897,2]
[359911488,1746414647191,-1040.78861574,0.00019897,2]
[359911490,1746414647200,-1040.78861574,0.00019897,2]
[359911492,1746414647210,-716.41533562,0.00019897,2]
[359911495,1746414647222,-324.37328012,0.00019897,2]
[359911497,1746414647231,-45.82322688,0.00019897,2]
[359911499,1746414647243,-994.96538886,0.00019897,2]
[359911501,1746414647252,-1040.78861574,0.00019897,2]
[359911503,1746414647261,-1040.78861574,0.00019897,2]
[359911505,1746414647270,-1040.78861574,0.00019897,2]
[359911507,1746414647279,-1040.78861574,0.00019897,2]
[359911509,1746414647288,-1040.78861574,0.00019897,2]
[359911511,1746414647297,-1040.78861574,0.00019897,2]
[359911513,1746414647306,-1040.78861574,0.00019897,2]
[359911515,1746414647315,-1040.78861574,0.00019897,2]
[359911517,1746414647324,-1040.78861574,0.00019897,2]
[359911519,1746414647334,-1021.86518637,0.00019897,2]
[359911521,1746414647343,-1021.86518637,0.00019897,2]
[359911523,1746414647353,-1021.86518637,0.00019897,2]
[359911525,1746414647362,-1021.86518637,0.00019897,2]
[359911527,1746414647371,-1021.86518637,0.00019897,2]
[359911529,1746414647381,-1021.86518637,0.00019897,2]
[359911531,1746414647390,-839.1395211,0.00019897,2]
[359911605,1746414648088,-182.72566527,0.00019897,2]
[359911607,1746414648097,-1021.86518637,0.00019897,2]
[359911609,1746414648107,-1021.86518637,0.00019897,2]
[359911611,1746414648117,-1021.86518637,0.00019897,2]
[359911613,1746414648126,-1021.86518637,0.00019897,2]
[359911614,1746414648135,-1021.86518637,0.00019897,2]
[359911617,1746414648145,-1021.86518637,0.00019897,2]
[359911619,1746414648155,-1021.86518637,0.00019897,2]
[359911621,1746414648164,-1021.86518637,0.00019897,2]
[359911622,1746414648174,-1021.86518637,0.00019897,2]
[359911624,1746414648183,-1021.86518637,0.00019897,2]
[359911626,1746414648192,-1021.86518637,0.00019897,2]
[359911628,1746414648201,-1021.86518637,0.00019897,2]
[359911630,1746414648210,-1021.86518637,0.00019897,2]
[359911632,1746414648220,-1021.86518637,0.00019897,2]
[359911634,1746414648229,-1021.86518637,0.00019897,2]
[359911636,1746414648239,-1021.86518637,0.00019897,2]
[359911638,1746414648248,-1021.86518637,0.00019897,2]
[359911640,1746414648259,-1021.86518637,0.00019897,2]
[359911642,1746414648268,-1021.86518637,0.00019897,2]
[359911644,1746414648278,-1021.86518637,0.00019897,2]
[359911647,1746414648288,-1021.86518637,0.00019897,2]
[359911649,1746414648298,-1021.86518637,0.00019897,2]
[359911651,1746414648307,-1021.86518637,0.00019897,2]
[359911653,1746414648317,-450.92882282,0.00019897,2]
[359911726,1746414654798,997.31,0.00019044,2]
[359911727,1746414655016,997.31,0.00019049,2]
[359911728,1746414655388,997.31,0.00019054,2]
[359911729,1746414655440,997.31,0.00019059,2]
[359911730,1746414655833,997.31,0.00019064,2]
[359911731,1746414656250,997.31,0.00019069,2]
[359911732,1746414656451,997.31,0.00019074,2]
[359911733,1746414656644,411.74852961,0.00019079,2]
[359911734,1746414656667,585.56147039,0.00019079,2]
[359911735,1746414657063,997.31,0.00019084,2]
[359911736,1746414657270,997.31,0.00019089,2]
[359911737,1746414657496,997.31,0.00019094,2]
[359911738,1746414657698,997.31,0.00019099,2]
[359911739,1746414657918,997.31,0.00019104,2]
[359911740,1746414658162,997.31,0.00019109,2]
[359911741,1746414658403,997.31,0.00019114,2]
[359911742,1746414658620,997.31,0.00019119,2]
[359911743,1746414658843,997.31,0.00019124,2]
[359911744,1746414659054,997.31,0.00019129,2]
[359911745,1746414659252,997.31,0.00019134,2]
[359911746,1746414659483,997.31,0.00019139,2]
[359911751,1746414885199,250.0,0.00017,2]
[359911752,1746414885836,151.0,0.00019,2]
[359911753,1746414885859,149.0,0.00019,2]
[359911754,1746414980261,1000.0,0.00018881,2]
[359911755,1746415155252,412.09,0.00016956,2]
[359911756,1746415155472,412.09,0.0001922,2]
[359911757,1746415201031,620.03,0.00018888,2]
[359911758,1746415246657,1500.0,0.00019178,2]
[359911759,1746415270482,1110.0,0.00019,6]
[359911760,1746415308341,1192.47,0.00018871,2]
[359911761,1746415344808,771.12,0.00018876,2]
[359911762,1746415506263,150.050512,0.0003,30]
[359911763,1746415520083,200.0,0.00018851,2]
[359911802,1746415786435,5000.0,0.00030137,120]
[359911807,1746415831419,-176.10351318,0.00019655,2]
[359911809,1746415831428,-202.54910475,0.00019659,2]
[359911811,1746415831438,-202.54910471,0.00019662,2]
[359911812,1746415831447,-202.54910471,0.00019665,2]
[359911814,1746415831457,-202.54910471,0.00019668,2]
[359911816,1746415831466,-202.54910471,0.00019671,2]
[359911818,1746415831476,-123.34167323,0.0001975,2]
[359911821,1746415831527,-276.66902567,0.0001975,2]
[359911822,1746415831536,-200.0,0.00019752,2]
[359911823,1746415831546,-250.0,0.00019754,2]
[359911824,1746415831555,-207.4,0.00019759,2]
[359911825,1746415831564,-300.0,0.00019769,2]
[359911826,1746415831573,-151.0,0.0001977,2]
[359911827,1746415831583,-300.0,0.0001977,2]
[359911828,1746415831592,-505.50194471,0.0001977,2]
[359911829,1746415831741,-694.49805529,0.0001977,2]
[359911830,1746415831751,-868.552,0.00019771,2]
[359911831,1746415831759,-486.97733556,0.00019771,2]
[359911836,1746415837520,-888.9,0.00019771,2]
[359911837,1746415837575,-754.94554677,0.00019771,2]
[359911838,1746415837634,-10717.1967173,0.00019771,2]
[359911839,1746415837689,-1600.94212731,0.00019771,2]
[359911840,1746415837700,-6129.88,0.00019771,2]
[359911841,1746415837903,-10030.98720358,0.00019771,2]
[359911898,1746415839758,-4061.86942373,0.00019771,2]
[359911899,1746415839770,-1580.03774575,0.00019771,2]
[359911900,1746415839780,-330.1175,0.00019793,2]
[359911901,1746415839790,-640.14772353,0.00019793,2]
[359911902,1746415839800,-2742.5768287,0.00019793,2]
[359911903,1746415839809,-2969.05582741,0.00019794,2]
[359911904,1746415839831,-1493.27209043,0.00019794,2]
[359911905,1746415839843,-1111.75,0.00019794,2]
[359911906,1746415839855,-472.005,0.00019794,2]
[359911907,1746415839871,-737.45685616,0.00019794,2]
[359911908,1746415839882,-1204.646126,0.00019794,2]
[359911909,1746415839892,-2274.91196004,0.00019794,2]
[359911910,1746415839902,-216.88634069,0.00019794,2]
[359911911,1746415839912,-182.46493087,0.00019797,2]
[359911912,1746415839938,-168.20916913,0.00019797,2]
[359911913,1746415839948,-173.88678217,0.00019797,2]
[359911914,1746415839958,-500.0,0.00019798,2]
[359911915,1746415839968,-1157.9040487,0.00019805,2]
[359911916,1746415839979,-1584.67277997,0.00019805,2]
[359911917,1746415839989,-2274.91195997,0.00019806,2]
[359911918,1746415839999,-2742.57682867,0.00019817,2]
[359911919,1746415840009,-2274.91195997,0.00019818,2]
[359911920,1746415840019,-2742.57682867,0.00019829,2]
[359911921,1746415840029,-2274.91195997,0.00019829,2]
[359911922,1746415840039,-173.88678214,0.00019831,2]
[359911923,1746415840048,-2742.57682867,0.00019841,2]
[359911924,1746415840058,-2274.91195997,0.00019841,2]
[359911925,1746415840067,-2742.57682867,0.00019852,2]
[359911926,1746415840076,-2274.91195997,0.00019853,2]
[359911927,1746415840086,-2742.57682867,0.00019864,2]
[359911928,1746415840095,-2274.91195997,0.00019865,2]
[359911929,1746415840105,-173.88678214,0.00019866,2]
[359911930,1746415840114,-450.0,0.0001987,2]
[359911931,1746415840124,-450.0,0.0001987,2]
[359911932,1746415840133,-450.0,0.0001987,2]
[359911933,1746415840143,-477.89082003,0.0001987,2]
[359911934,1746415840153,-465.93400009,0.0001987,2]
[359911935,1746415840163,-450.0,0.0001987,2]
[359911936,1746415840172,-1000.0,0.00019873,2]
[359911937,1746415840183,-500.80786321,0.00019873,2]
[359911938,1746415840192,-500.0,0.00019873,2]
[359911939,1746415840202,-501.05573658,0.00019873,2]
[359911940,1746415840212,-2742.57682867,0.00019876,2]
[359911941,1746415840221,-2274.91195997,0.00019876,2]
[359911942,1746415840231,-2274.91195997,0.00019888,2]
[359911943,1746415840240,-450.0,0.00019892,2]
[359911944,1746415840249,-450.0,0.00019892,2]
[359911945,1746415840259,-450.0,0.00019892,2]
[359911946,1746415840268,-400.0,0.00019892,2]
[359911947,1746415840278,-450.0,0.00019892,2]
[359911948,1746415840287,-450.0,0.00019892,2]
[359911949,1746415840297,-450.0,0.00019892,2]
[359911950,1746415840307,-450.0,0.00019892,2]
[359911951,1746415840316,-474.77390612,0.00019892,2]
[359911952,1746415840327,-450.0,0.00019892,2]
[359911953,1746415840337,-536.29874379,0.00019892,2]
[359911954,1746415840346,-450.0,0.00019892,2]
[359911955,1746415840355,-1017.05,0.00019892,2]
[359911956,1746415840365,-306.19115913,0.00019892,2]
[359911957,1746415840374,-450.0,0.00019892,2]
[359911958,1746415840384,-450.0,0.00019892,2]
[359911959,1746415840393,-450.0,0.00019892,2]
[359911960,1746415840403,-450.0,0.00019892,2]
[359911961,1746415840412,-450.0,0.00019892,2]
[359911962,1746415840590,-489.02932887,0.00019892,2]
[359911963,1746415840600,-450.0,0.00019892,2]
[359911964,1746415840609,-450.0,0.00019892,2]
[359911965,1746415840618,-554.7969361,0.00019892,2]
[359911966,1746415840627,-450.0,0.00019892,2]
[359911967,1746415840639,-450.0,0.00019892,2]
[359911968,1746415840648,-568.85445459,0.00019892,2]
[359911969,1746415840657,-12978.75,0.00019892,2]
[359911970,1746415840667,-450.0,0.00019892,2]
[359911971,1746415840676,-450.0,0.00019892,2]
[359911972,1746415840686,-450.0,0.00019892,2]
[359911973,1746415840695,-1297.1,0.00019892,2]
[359911974,1746415840705,-450.0,0.00019892,2]
[359911975,1746415840715,-450.0,0.00019892,2]
[359911976,1746415840725,-450.0,0.00019892,2]
[359911977,1746415840734,-450.0,0.00019892,2]
[359911978,1746415840743,-450.0,0.00019892,2]
[359911979,1746415840752,-450.0,0.00019892,2]
[359911980,1746415840762,-450.0,0.00019892,2]
[359911981,1746415840771,-450.0,0.00019892,2]
[359911982,1746415840781,-914.11,0.00019892,2]
[359911983,1746415840790,-596.08,0.00019892,2]
[359911984,1746415840800,-450.0,0.00019892,2]
[359911985,1746415840810,-450.0,0.00019892,2]
[359911986,1746415840819,-450.0,0.00019892,2]
[359911987,1746415840828,-450.0,0.00019892,2]
[359911988,1746415840837,-282.71743429,0.00019892,2]
[359911989,1746415840846,-476.1762135,0.00019892,2]
[359911990,1746415840855,-450.0,0.00019892,2]
[359911991,1746415840865,-450.0,0.00019892,2]
[359911992,1746415840874,-450.0,0.00019892,2]
[359911993,1746415840883,-507.03,0.00019892,2]
[359911994,1746415840892,-450.0,0.00019892,2]
[359911995,1746415840901,-450.0,0.00019892,2]
[359911996,1746415840909,-450.0,0.00019892,2]
[359911997,1746415840919,-1989.16,0.00019892,2]
[359911998,1746415840928,-450.0,0.00019892,2]
[359911999,1746415840937,-450.0,0.00019892,2]
[359912000,1746415840946,-450.0,0.00019892,2]
[359912001,1746415840955,-450.0,0.00019892,2]
[359912002,1746415840965,-300.42861565,0.00019892,2]
[359912003,1746415840974,-450.0,0.00019892,2]
[359912004,1746415840983,-400.0,0.00019892,2]
[359912005,1746415840994,-2188.98,0.00019892,2]
[359912006,1746415841003,-545.24973998,0.00019892,2]
[359912007,1746415841014,-450.0,0.00019892,2]
[359912008,1746415841023,-450.0,0.00019892,2]
[359912009,1746415841033,-450.0,0.00019892,2]
[359912010,1746415841044,-450.0,0.00019892,2]
[359912011,1746415841055,-450.0,0.00019892,2]
[359912012,1746415841065,-599.45137858,0.00019892,2]
[359912013,1746415841075,-774.54,0.00019892,2]
[359912014,1746415841084,-450.0,0.00019892,2]
[359912015,1746415841093,-450.0,0.00019892,2]
[359912016,1746415841103,-450.0,0.00019892,2]
[359912017,1746415841112,-450.0,0.00019892,2]
[359912018,1746415841121,-450.0,0.00019892,2]
[359912019,1746415841130,-508.5990812,0.00019892,2]
[359912020,1746415841139,-557.81,0.00019892,2]
[359912021,1746415841148,-500.0,0.00019892,2]
[359912022,1746415841158,-271.14584431,0.00019893,2]
[359912023,1746415841167,-450.0,0.00019893,2]
[359912024,1746415841176,-450.0,0.00019893,2]
[359912025,1746415841185,-556.44,0.00019893,2]
[359912026,1746415841194,-450.0,0.00019893,2]
[359912027,1746415841203,-450.0,0.00019893,2]
[359912028,1746415841212,-450.0,0.00019893,2]
[359912029,1746415841223,-450.0,0.00019893,2]
[359912030,1746415841232,-450.0,0.00019893,2]
[359912031,1746415841241,-450.0,0.00019893,2]
[359912032,1746415841251,-450.0,0.00019893,2]
[359912033,1746415841261,-450.0,0.00019893,2]
[359912034,1746415841271,-450.0,0.00019893,2]
[359912035,1746415841280,-473.64893551,0.00019893,2]
[359912036,1746415841290,-530.74337923,0.00019893,2]
[359912037,1746415841300,-467.56259824,0.00019893,2]
[359912038,1746415841309,-480.17718152,0.00019893,2]
[359912039,1746415841319,-450.0,0.00019893,2]
[359912040,1746415841327,-450.0,0.00019893,2]
[359912041,1746415841336,-470.73379603,0.00019893,2]
[359912042,1746415841346,-450.0,0.00019893,2]
[359912043,1746415841355,-465.58248752,0.00019893,2]
[359912044,1746415841365,-476.10273461,0.00019893,2]
[359912045,1746415841375,-450.0,0.00019893,2]
[359912046,1746415841384,-450.0,0.00019893,2]
[359912047,1746415841394,-509.35152763,0.00019893,2]
[359912048,1746415841403,-450.0,0.00019893,2]
[359912049,1746415841412,-450.0,0.00019893,2]
[359912050,1746415841422,-450.0,0.00019893,2]
[359912051,1746415841432,-450.0,0.00019893,2]
[359912052,1746415841442,-469.83046995,0.00019893,2]
[359912053,1746415841451,-450.0,0.00019893,2]
[359912054,1746415841461,-450.0,0.00019893,2]
[359912055,1746415841472,-450.0,0.00019893,2]
[359912056,1746415841481,-470.60779098,0.00019893,2]
[359912057,1746415841491,-450.0,0.00019893,2]
[359912058,1746415841500,-530.0,0.00019893,2]
[359912059,1746415841510,-450.0,0.00019893,2]
[359912060,1746415841519,-529.09377469,0.00019893,2]
[359912061,1746415841529,-450.0,0.00019893,2]
[359912062,1746415841538,-481.85679309,0.00019893,2]
[359912063,1746415841547,-450.0,0.00019893,2]
[359912064,1746415841556,-450.0,0.00019893,2]
[359912065,1746415841566,-450.0,0.00019893,2]
[359912066,1746415841575,-450.0,0.00019893,2]
[359912067,1746415841584,-494.94874286,0.00019893,2]
[359912068,1746415841593,-450.0,0.00019893,2]
[359912069,1746415841603,-458.27232362,0.00019893,2]
[359912070,1746415841612,-450.0,0.00019893,2]
[359912071,1746415841621,-450.0,0.00019893,2]
[359912072,1746415841631,-502.53110081,0.00019893,2]
[359912073,1746415841645,-450.0,0.00019893,2]
[359912074,1746415841655,-450.0,0.00019893,2]
[359912075,1746415841664,-450.0,0.00019893,2]
[359912076,1746415841675,-450.0,0.00019893,2]
[359912077,1746415841684,-450.0,0.00019893,2]
[359912078,1746415841693,-450.0,0.00019893,2]
[359912079,1746415841702,-450.0,0.00019893,2]
[359912080,1746415841712,-450.0,0.00019893,2]
[359912081,1746415841721,-500.0,0.00019893,2]
[359912082,1746415841730,-450.0,0.00019893,2]
[359912083,1746415841740,-450.0,0.00019893,2]
[359912084,1746415841750,-450.0,0.00019893,2]
[359912085,1746415841759,-540.31288276,0.00019893,2]
[359912086,1746415841768,-450.0,0.00019893,2]
[359912087,1746415841778,-450.0,0.00019893,2]
[359912088,1746415841787,-498.97247815,0.00019893,2]
[359912089,1746415841796,-450.0,0.00019893,2]
[359912090,1746415841806,-450.0,0.00019893,2]
[359912091,1746415841815,-543.14725712,0.00019893,2]
[359912092,1746415841824,-450.0,0.00019893,2]
[359912093,1746415841833,-401.2203024,0.00019893,2]
[359912094,1746415841843,-450.0,0.00019893,2]
[359912095,1746415841852,-523.44384776,0.00019893,2]
[359912096,1746415841862,-515.07198435,0.00019893,2]
[359912097,1746415841871,-546.99274835,0.00019893,2]
[359912098,1746415841880,-450.0,0.00019893,2]
[359912099,1746415841889,-513.01704804,0.00019893,2]
[359912100,1746415841899,-170.37861243,0.00019893,2]
[359912101,1746415841908,-450.0,0.00019893,2]
[359912102,1746415841918,-450.0,0.00019893,2]
[359912103,1746415841927,-450.0,0.00019893,2]
[359912104,1746415841935,-450.0,0.00019893,2]
[359912105,1746415841945,-450.0,0.00019893,2]
[359912106,1746415841955,-450.0,0.00019893,2]
[359912107,1746415841964,-450.0,0.00019893,2]
[359912108,1746415841973,-450.0,0.00019893,2]
[359912109,1746415841983,-450.0,0.00019893,2]
[359912110,1746415841992,-450.0,0.00019893,2]
[359912111,1746415842002,-450.0,0.00019893,2]
[359912112,1746415842011,-450.0,0.00019893,2]
[359912113,1746415842020,-450.0,0.00019893,2]
[359912114,1746415842030,-487.02613575,0.00019893,2]
[359912115,1746415842039,-450.0,0.00019893,2]
[359912116,1746415842049,-450.0,0.00019893,2]
[359912117,1746415842058,-519.74279589,0.00019893,2]
[359912118,1746415842068,-387.25791908,0.00019893,2]
[359912119,1746415842077,-450.0,0.00019893,2]
[359912120,1746415842086,-151.0,0.00019893,2]
[359912121,1746415842095,-500.0,0.00019893,2]
[359912122,1746415842104,-450.0,0.00019893,2]
[359912123,1746415842113,-450.0,0.00019893,2]
[359912124,1746415842122,-154.219957,0.00019893,2]
[359912125,1746415842131,-151.220674,0.00019893,2]
[359912126,1746415842144,-450.0,0.00019893,2]
[359912127,1746415842154,-152.545956,0.00019893,2]
[359912128,1746415842163,-500.0,0.00019893,2]
[359912129,1746415842172,-450.0,0.00019893,2]
[359912130,1746415842182,-450.0,0.00019893,2]
[359912131,1746415842191,-525.85,0.00019893,2]
[359912132,1746415842201,-450.0,0.00019893,2]
[359912133,1746415842210,-500.0,0.00019893,2]
[359912134,1746415842219,-450.0,0.00019893,2]
[359912135,1746415842229,-151.0,0.00019893,2]
[359912137,1746415842238,-151.0,0.00019893,2]
[359912139,1746415842247,-151.0,0.00019893,2]
[359912141,1746415842257,-450.0,0.00019893,2]
[359912143,1746415842267,-500.0,0.00019893,2]
[359912145,1746415842276,-151.0,0.00019893,2]
[359912146,1746415842285,-154.932335,0.00019893,2]
[359912148,1746415842295,-450.0,0.00019893,2]
[359912150,1746415842304,-450.0,0.00019893,2]
[359912152,1746415842313,-450.0,0.00019893,2]
[359912154,1746415842323,-450.0,0.00019893,2]
[359912156,1746415842332,-450.0,0.00019893,2]
[359912158,1746415842342,-450.0,0.00019893,2]
[359912159,1746415842351,-151.0,0.00019893,2]
[359912160,1746415842360,-248.58051921,0.00019893,2]
[359912161,1746415842370,-151.0,0.00019893,2]
[359912162,1746415842379,-159.295582,0.00019893,2]
[359912163,1746415842388,-151.0,0.00019893,2]
[359912164,1746415842397,-515.18967014,0.00019893,2]
[359912165,1746415842406,-150.0,0.00019893,2]
[359912166,1746415842416,-150.0,0.00019893,2]
[359912167,1746415842428,-159.975173,0.00019893,2]
[359912168,1746415842437,-160.67892,0.00019893,2]
[359912169,1746415842447,-191.78611,0.00019893,2]
[359912171,1746415842456,-554.30705815,0.00019893,2]
[359912172,1746415842465,-151.0,0.00019893,2]
[359912173,1746415842474,-191.78611,0.00019893,2]
[359912174,1746415842483,-508.88117952,0.00019893,2]
[359912175,1746415842493,-589.09699934,0.00019893,2]
[359912176,1746415842502,-494.4797099,0.00019893,2]
[359912177,1746415842511,-151.0,0.00019893,2]
[359912178,1746415842520,-500.0,0.00019893,2]
[359912179,1746415842530,-550.52523497,0.00019893,2]
[359912180,1746415842539,-151.0,0.00019893,2]
[359912181,1746415842548,-151.0,0.00019893,2]
[359912182,1746415842557,-151.0,0.00019893,2]
[359912183,1746415842567,-151.0,0.00019893,2]
[359912184,1746415842576,-151.0,0.00019893,2]
[359912185,1746415842586,-463.49492081,0.00019893,2]
[359912186,1746415842595,-185.615751,0.00019893,2]
[359912187,1746415842605,-450.0,0.00019893,2]
[359912188,1746415842614,-430.0,0.00019893,2]
[359912189,1746415842624,-475.24364102,0.00019893,2]
[359912190,1746415842635,-481.97274885,0.00019893,2]
[359912191,1746415842646,-450.0,0.00019893,2]
[359912192,1746415842655,-505.40709263,0.00019893,2]
[359912193,1746415842665,-500.5078654,0.00019893,2]
[359912194,1746415842675,-450.0,0.00019893,2]
[359912195,1746415842685,-450.0,0.00019893,2]
[359912196,1746415842694,-475.60526731,0.00019893,2]
[359912197,1746415842703,-450.0,0.00019893,2]
[359912198,1746415842715,-450.0,0.00019893,2]
[359912199,1746415842724,-486.89173946,0.00019893,2]
[359912200,1746415842734,-450.0,0.00019893,2]
[359912201,1746415842743,-450.0,0.00019893,2]
[359912202,1746415842753,-455.31648254,0.00019893,2]
[359912203,1746415842762,-487.29742973,0.00019893,2]
[359912204,1746415842771,-515.5526352,0.00019893,2]
[359912205,1746415842781,-450.0,0.00019893,2]
[359912206,1746415842790,-450.0,0.00019893,2]
[359912207,1746415842804,-450.0,0.00019893,2]
[359912208,1746415842813,-526.69437625,0.00019893,2]
[359912209,1746415842823,-488.64166291,0.00019893,2]
[359912211,1746415842832,-450.0,0.00019893,2]
[359912213,1746415842841,-450.0,0.00019893,2]
[359912215,1746415842850,-450.0,0.00019893,2]
[359912217,1746415842860,-592.8489108,0.00019893,2]
[359912219,1746415842869,-450.0,0.00019893,2]
[359912221,1746415842878,-450.0,0.00019893,2]
[359912222,1746415842887,-450.0,0.00019893,2]
[359912224,1746415842896,-470.0,0.00019893,2]
[359912226,1746415842905,-450.0,0.00019893,2]
[359912228,1746415842914,-450.0,0.00019893,2]
[359912230,1746415842923,-493.16275922,0.00019893,2]
[359912232,1746415842933,-450.0,0.00019893,2]
[359912234,1746415842942,-450.0,0.00019893,2]
[359912236,1746415842951,-450.0,0.00019893,2]
[359912238,1746415842960,-450.0,0.00019893,2]
[359912240,1746415842969,-303.0345973,0.00019893,2]
[359912242,1746415842978,-436.86609465,0.00019893,2]
[359912244,1746415842988,-500.0,0.00019893,2]
[359912246,1746415842997,-500.0,0.00019893,2]
[359912248,1746415843006,-500.0,0.00019893,2]
[359912250,1746415843015,-500.0,0.00019893,2]
[359912252,1746415843024,-500.0,0.00019893,2]
[359912254,1746415843034,-500.0,0.00019893,2]
[359912256,1746415843043,-500.0,0.00019893,2]
[359912258,1746415843053,-500.0,0.00019893,2]
[359912260,1746415843062,-500.0,0.00019893,2]
[359912262,1746415843071,-500.0,0.00019893,2]
[359912264,1746415843080,-197.5396531,0.00019893,2]
[359912265,1746415843089,-500.0,0.00019893,2]
[359912267,1746415843099,-500.0,0.00019893,2]
[359912268,1746415843108,-500.0,0.00019893,2]
[359912270,1746415843118,-500.0,0.00019893,2]
[359912272,1746415843127,-500.0,0.00019893,2]
[359912274,1746415843136,-500.0,0.00019893,2]
[359912276,1746415843145,-500.0,0.00019893,2]
[359912278,1746415843154,-500.0,0.00019893,2]
[359912280,1746415843164,-500.0,0.00019893,2]
[359912282,1746415843173,-500.0,0.00019893,2]
[359912284,1746415843181,-500.0,0.00019893,2]
[359912286,1746415843190,-500.0,0.00019893,2]
[359912288,1746415843199,-500.0,0.00019893,2]
[359912290,1746415843208,-500.0,0.00019893,2]
[359912291,1746415843218,-500.0,0.00019893,2]
[359912293,1746415843227,-500.0,0.00019893,2]
[359912295,1746415843236,-500.0,0.00019893,2]
[359912297,1746415843246,-500.0,0.00019893,2]
[359912299,1746415843255,-500.0,0.00019893,2]
[359912301,1746415843264,-500.0,0.00019893,2]
[359912303,1746415843274,-588.19457798,0.00019893,2]
[359912305,1746415843284,-500.0,0.00019893,2]
[359912307,1746415843293,-500.0,0.00019893,2]
[359912308,1746415843302,-500.0,0.00019893,2]
[359912309,1746415843312,-500.0,0.00019893,2]
[359912310,1746415843321,-500.0,0.00019893,2]
[359912311,1746415843331,-500.0,0.00019893,2]
[359912312,1746415843340,-500.0,0.00019893,2]
[359912313,1746415843349,-500.0,0.00019893,2]
[359912314,1746415843359,-500.0,0.00019893,2]
[359912315,1746415843368,-500.0,0.00019893,2]
[359912316,1746415843377,-500.0,0.00019893,2]
[359912317,1746415843386,-500.0,0.00019893,2]
[359912318,1746415843396,-500.0,0.00019893,2]
[359912319,1746415843405,-500.0,0.00019893,2]
[359912320,1746415843414,-500.0,0.00019893,2]
[359912321,1746415843423,-500.0,0.00019893,2]
[359912322,1746415843432,-500.0,0.00019893,2]
[359912323,1746415843442,-500.0,0.00019893,2]
[359912325,1746415843451,-500.0,0.00019893,2]
[359912326,1746415843460,-500.0,0.00019893,2]
[359912327,1746415843469,-500.0,0.00019893,2]
[359912328,1746415843479,-500.0,0.00019893,2]
[359912329,1746415843488,-500.0,0.00019893,2]
[359912330,1746415843497,-500.0,0.00019893,2]
[359912331,1746415843506,-500.0,0.00019893,2]
[359912332,1746415843516,-500.0,0.00019893,2]
[359912333,1746415843525,-500.0,0.00019893,2]
[359912334,1746415843535,-500.0,0.00019893,2]
[359912335,1746415843544,-500.0,0.00019893,2]
[359912336,1746415843553,-500.0,0.00019893,2]
[359912337,1746415843563,-500.0,0.00019893,2]
[359912338,1746415843572,-918.90916568,0.00019893,2]
[359912339,1746415843581,-918.90916568,0.00019893,2]